[Event "Elitserien 2022/2023"]
[Site "Elite Hotel Marina Plaza, Kungstorget 6, Helsingborg, Sweden"]
[Date "2022.10.14"]
[Round "1.14"]
[White "Adahl, Mattias"]
[Black "Andersson, Fredrik"]
[Result "1-0"]
[TimeControl "90 minutes for 40 moves + 30 minutes for the rest of the game + 30 seconds per move from move one."]
[BlackTitle "FM"]
[WhiteFideId "1702688"]
[BlackFideId "1706187"]
[WhiteElo "2104"]
[BlackElo "2268"]

1. d4 {[%clk 01:30:55]} {[%emt 00:00:05]} d5 {[%clk 01:30:42]} {[%emt
00:00:18]} 2. Nf3 {[%clk 01:29:55]} {[%emt 00:01:30]} Nf6 {[%clk 01:30:32]}
{[%emt 00:00:41]} 3. c3 {[%clk 01:29:15]} {[%emt 00:01:10]} e6 {[%clk
01:18:51]} {[%emt 00:12:10]} 4. Bg5 {[%clk 01:26:14]} {[%emt 00:03:31]} Be7
{[%clk 01:18:03]} {[%emt 00:01:18]} 5. Nbd2 {[%clk 01:22:13]} {[%emt 00:04:31]}
O-O {[%clk 01:13:28]} {[%emt 00:05:06]} 6. Qc2 {[%clk 01:21:13]} {[%emt
00:01:29]} c5 {[%clk 01:00:48]} {[%emt 00:13:09]} 7. Bxf6 {[%clk 01:07:53]}
{[%emt 00:13:51]} Bxf6 {[%clk 00:57:26]} {[%emt 00:03:52]} 8. dxc5 {[%clk
01:06:47]} {[%emt 00:01:35]} Nd7 {[%clk 00:51:17]} {[%emt 00:06:40]} 9. b4
{[%clk 00:58:53]} {[%emt 00:08:24]} Qc7 {[%clk 00:37:24]} {[%emt 00:14:24]} 10.
g4 {[%clk 00:47:49]} {[%emt 00:11:34]} b6 {[%clk 00:33:00]} {[%emt 00:04:53]}
11. g5 {[%clk 00:47:53]} {[%emt 00:00:27]} Be7 {[%clk 00:33:15]} {[%emt
00:00:14]} 12. cxb6 {[%clk 00:47:00]} {[%emt 00:01:22]} axb6 {[%clk 00:32:20]}
{[%emt 00:01:25]} 13. Rb1 {[%clk 00:43:12]} {[%emt 00:04:18]} Bb7 {[%clk
00:29:36]} {[%emt 00:03:14]} 14. Rg1 {[%clk 00:36:14]} {[%emt 00:07:28]} Ra3
{[%clk 00:24:42]} {[%emt 00:05:23]} 15. Rc1 {[%clk 00:24:50]} {[%emt 00:11:55]}
Rfa8 {[%clk 00:22:38]} {[%emt 00:02:34]} 16. h4 {[%clk 00:25:11]} {[%emt
00:00:09]} Rxa2 {[%clk 00:21:58]} {[%emt 00:01:10]} 17. Qd1 {[%clk 00:21:18]}
{[%emt 00:04:23]} Bc6 {[%clk 00:15:59]} {[%emt 00:06:29]} 18. Nb1 {[%clk
00:20:31]} {[%emt 00:01:17]} Ba4 {[%clk 00:15:21]} {[%emt 00:01:08]} 19. Qd4
{[%clk 00:20:13]} {[%emt 00:00:48]} Rb2 {[%clk 00:13:45]} {[%emt 00:02:06]} 20.
Qe3 {[%clk 00:16:44]} {[%emt 00:03:59]} Rc8 {[%clk 00:13:28]} {[%emt 00:00:47]}
21. Bh3 {[%clk 00:15:01]} {[%emt 00:02:13]} Bc2 {[%clk 00:09:54]} {[%emt
00:04:03]} 22. Rxc2 {[%clk 00:05:46]} {[%emt 00:09:46]} Rxc2 {[%clk 00:08:06]}
{[%emt 00:02:18]} 23. Kf1 {[%clk 00:05:42]} {[%emt 00:00:34]} Rb2 {[%clk
00:07:30]} {[%emt 00:01:07]} 24. Kg2 {[%clk 00:05:40]} {[%emt 00:00:32]} Ra8
{[%clk 00:06:48]} {[%emt 00:01:12]} 25. h5 {[%clk 00:05:50]} {[%emt 00:00:20]}
Ra1 {[%clk 00:05:35]} {[%emt 00:01:42]} 26. g6 {[%clk 00:03:04]} {[%emt
00:03:16]} Rbxb1 {[%clk 00:05:50]} {[%emt 00:00:14]} 27. gxf7+ {[%clk
00:03:08]} {[%emt 00:00:26]} Kf8 {[%clk 00:06:06]} {[%emt 00:00:15]} 28. Rxb1
{[%clk 00:03:18]} {[%emt 00:00:20]} Rxb1 {[%clk 00:06:33]} {[%emt 00:00:03]} 29.
Qd3 {[%clk 00:02:47]} {[%emt 00:01:01]} Rc1 {[%clk 00:04:50]} {[%emt 00:02:12]}
30. Qxh7 {[%clk 00:02:57]} {[%emt 00:00:20]} Kxf7 {[%clk 00:04:13]} {[%emt
00:01:07]} 31. Qg6+ {[%clk 00:02:48]} {[%emt 00:00:39]} Kf8 {[%clk 00:03:01]}
{[%emt 00:01:42]} 32. Bxe6 {[%clk 00:02:56]} {[%emt 00:00:23]} Qf4 {[%clk
00:02:23]} {[%emt 00:01:08]} 33. Bxd7 {[%clk 00:02:58]} {[%emt 00:00:27]} Qf7
{[%clk 00:02:51]} {[%emt 00:00:03]} 34. Qg4 {[%clk 00:02:50]} {[%emt 00:00:38]}
Bf6 {[%clk 00:01:58]} {[%emt 00:01:22]} 35. Be6 {[%clk 00:02:35]} {[%emt
00:00:44]} Qe7 {[%clk 00:01:21]} {[%emt 00:01:07]} 36. h6 {[%clk 00:02:46]}
{[%emt 00:00:19]} g5 {[%clk 00:01:18]} {[%emt 00:00:33]} 37. Qf5 {[%clk
00:02:15]} {[%emt 00:01:01]} Ke8 {[%clk 00:00:41]} {[%emt 00:01:07]} 38. h7
{[%clk 00:01:31]} {[%emt 00:01:15]} Rxc3 {[%clk 00:01:01]} {[%emt 00:00:08]} 39.
Nxg5 {[%clk 00:01:29]} {[%emt 00:00:34]} Qg7 {[%clk 00:00:41]} {[%emt
00:00:49]} 40. h8=Q+ Qxh8 {[%clk 00:01:07]} 41. Qg6+ {[%clk 00:29:44]} {[%emt
00:01:30]} Ke7 {[%clk 00:31:25]} {[%emt 00:00:12]} 42. Qf7+ {[%clk 00:30:04]}
{[%emt 00:00:11]} Kd6 {[%clk 00:31:48]} {[%emt 00:00:07]} 43. Qd7+ {[%clk
00:30:25]} {[%emt 00:00:08]} Ke5 {[%clk 00:32:13]} {[%emt 00:00:04]} 44. Nf7+
{[%clk 00:30:40]} {[%emt 00:00:16]} 1-0

[Event "Elitserien 2022/2023"]
[Site "Elite Hotel Marina Plaza, Kungstorget 6, Helsingborg, Sweden"]
[Date "2022.10.14"]
[Round "1.15"]
[White "Glimbrant, Torbjorn"]
[Black "Eriksson, Anders"]
[Result "1-0"]
[TimeControl "90 minutes for 40 moves + 30 minutes for the rest of the game + 30 seconds per move from move one."]
[BlackTitle "FM"]
[WhiteFideId "1700995"]
[BlackFideId "1701053"]
[WhiteElo "2133"]
[BlackElo "2197"]

1. c4 {[%clk 01:30:56]} {[%emt 00:00:04]} Nf6 {[%clk 01:30:53]} {[%emt
00:00:07]} 2. Nf3 {[%clk 01:31:03]} {[%emt 00:00:22]} c5 {[%clk 01:30:50]}
{[%emt 00:00:34]} 3. Nc3 {[%clk 01:31:07]} {[%emt 00:00:25]} e6 {[%clk
01:29:47]} {[%emt 00:01:34]} 4. g3 {[%clk 01:29:04]} {[%emt 00:02:33]} b6
{[%clk 01:30:07]} {[%emt 00:00:09]} 5. Bg2 {[%clk 01:29:23]} {[%emt 00:00:10]}
Bb7 {[%clk 01:30:31]} {[%emt 00:00:07]} 6. O-O {[%clk 01:29:40]} {[%emt
00:00:13]} Be7 {[%clk 01:30:53]} {[%emt 00:00:08]} 7. b3 {[%clk 01:28:05]}
{[%emt 00:02:05]} O-O {[%clk 01:31:04]} {[%emt 00:00:19]} 8. Bb2 {[%clk
01:27:43]} {[%emt 00:00:51]} d6 {[%clk 01:28:27]} {[%emt 00:03:09]} 9. e3
{[%clk 01:26:49]} {[%emt 00:01:23]} Nbd7 {[%clk 01:26:32]} {[%emt 00:02:26]} 10.
d4 {[%clk 01:24:50]} {[%emt 00:02:29]} cxd4 {[%clk 01:24:51]} {[%emt 00:02:11]}
11. Nxd4 {[%clk 01:24:32]} {[%emt 00:00:47]} Bxg2 {[%clk 01:24:43]} {[%emt
00:00:40]} 12. Kxg2 {[%clk 01:24:52]} {[%emt 00:00:09]} Qc7 {[%clk 01:24:38]}
{[%emt 00:00:34]} 13. f4 {[%clk 01:11:32]} {[%emt 00:13:52]} g6 {[%clk
01:14:00]} {[%emt 00:11:09]} 14. Qf3 {[%clk 01:07:08]} {[%emt 00:04:52]} Rac8
{[%clk 01:13:24]} {[%emt 00:00:56]} 15. Ncb5 {[%clk 01:03:00]} {[%emt
00:04:47]} Qb8 {[%clk 01:11:24]} {[%emt 00:02:30]} 16. Nc6 {[%clk 01:01:03]}
{[%emt 00:02:27]} Rxc6 {[%clk 01:10:59]} {[%emt 00:00:57]} 17. Qxc6 {[%clk
01:01:24]} {[%emt 00:00:08]} a6 {[%clk 01:10:10]} {[%emt 00:01:19]} 18. Bxf6
{[%clk 00:37:47]} {[%emt 00:24:08]} Nxf6 {[%clk 01:08:40]} {[%emt 00:01:59]} 19.
Nd4 {[%clk 00:37:45]} {[%emt 00:00:31]} d5 {[%clk 01:06:17]} {[%emt 00:02:54]}
20. Rac1 {[%clk 00:35:47]} {[%emt 00:02:27]} Bc5 {[%clk 00:53:09]} {[%emt
00:13:38]} 21. h3 {[%clk 00:25:03]} {[%emt 00:11:14]} Rc8 {[%clk 00:46:30]}
{[%emt 00:07:10]} 22. Qa4 {[%clk 00:21:36]} {[%emt 00:03:58]} Qb7 {[%clk
00:45:05]} {[%emt 00:01:55]} 23. Kh2 {[%clk 00:19:48]} {[%emt 00:02:17]} Rb8
{[%clk 00:32:35]} {[%emt 00:13:00]} 24. Qc6 {[%clk 00:11:52]} {[%emt 00:08:25]}
Qe7 {[%clk 00:31:48]} {[%emt 00:01:17]} 25. Rfe1 {[%clk 00:09:27]} {[%emt
00:02:55]} Rd8 {[%clk 00:26:44]} {[%emt 00:05:35]} 26. Qa4 {[%clk 00:08:30]}
{[%emt 00:01:27]} Qb7 {[%clk 00:25:28]} {[%emt 00:01:45]} 27. Nc6 {[%clk
00:07:50]} {[%emt 00:01:11]} Rc8 {[%clk 00:18:40]} {[%emt 00:07:19]} 28. Ne5
{[%clk 00:06:37]} {[%emt 00:01:42]} b5 {[%clk 00:17:58]} {[%emt 00:01:11]} 29.
cxb5 {[%clk 00:04:38]} {[%emt 00:02:29]} axb5 {[%clk 00:18:18]} {[%emt
00:00:10]} 30. Qa5 {[%clk 00:04:48]} {[%emt 00:00:19]} Ne4 {[%clk 00:14:34]}
{[%emt 00:04:14]} 31. Re2 {[%clk 00:02:59]} {[%emt 00:02:19]} b4 {[%clk
00:11:45]} {[%emt 00:03:20]} 32. Nd3 {[%clk 00:02:36]} {[%emt 00:00:53]} Bd6
{[%clk 00:10:28]} {[%emt 00:01:47]} 33. Rxc8+ {[%clk 00:01:35]} {[%emt
00:01:32]} Qxc8 {[%clk 00:10:41]} {[%emt 00:00:16]} 34. Qb6 {[%clk 00:01:15]}
{[%emt 00:00:50]} g5 {[%clk 00:07:01]} {[%emt 00:04:10]} 35. Qd4 {[%clk
00:01:25]} {[%emt 00:00:20]} h5 {[%clk 00:06:41]} {[%emt 00:00:50]} 36. Rg2
{[%clk 00:01:10]} {[%emt 00:00:45]} Kh7 {[%clk 00:06:04]} {[%emt 00:01:07]} 37.
Nf2 {[%clk 00:01:11]} {[%emt 00:00:29]} Nc3 {[%clk 00:05:47]} {[%emt 00:00:47]}
38. fxg5 {[%clk 00:00:45]} {[%emt 00:00:56]} Qc7 {[%clk 00:05:04]} {[%emt
00:01:13]} 39. Qf6 {[%clk 00:00:36]} {[%emt 00:00:39]} Ne2 {[%clk 00:05:12]}
{[%emt 00:00:22]} 40. Qh6+ {[%clk 00:00:37]} {[%emt 00:00:30]} Kg8 {[%clk
00:05:34]} {[%emt 00:00:08]} 41. Nh1 {[%clk 00:28:25]} {[%emt 00:02:41]} Nxg3
{[%emt 00:10:38]} 1-0

[Event "Elitserien 2022/2023"]
[Site "Elite Hotel Marina Plaza, Kungstorget 6, Helsingborg, Sweden"]
[Date "2022.10.14"]
[Round "1.17"]
[White "Bjerre, Jonas Buhl"]
[Black "Hector, Jonny"]
[Result "1-0"]
[TimeControl "90 minutes for 40 moves + 30 minutes for the rest of the game + 30 seconds per move from move one."]
[WhiteTitle "GM"]
[BlackTitle "GM"]
[WhiteFideId "1444948"]
[BlackFideId "1700090"]
[WhiteElo "2598"]
[BlackElo "2454"]

1. e4 {[%clk 01:30:33]} {[%emt 00:00:26]} e5 {[%clk 01:30:53]} {[%emt
00:00:08]} 2. Nf3 {[%clk 01:30:56]} {[%emt 00:00:07]} Nc6 {[%clk 01:31:16]}
{[%emt 00:00:06]} 3. Bb5 {[%clk 01:31:20]} {[%emt 00:00:07]} a6 {[%clk
01:31:15]} {[%emt 00:00:30]} 4. Ba4 {[%clk 01:31:31]} {[%emt 00:00:20]} Nf6
{[%clk 01:31:19]} {[%emt 00:00:26]} 5. O-O {[%clk 01:31:34]} {[%emt 00:00:27]}
Nxe4 {[%clk 01:31:07]} {[%emt 00:00:41]} 6. d4 {[%clk 01:30:52]} {[%emt
00:01:14]} b5 {[%clk 01:31:02]} {[%emt 00:00:34]} 7. Bb3 {[%clk 01:31:03]}
{[%emt 00:00:19]} d5 {[%clk 01:31:13]} {[%emt 00:00:18]} 8. dxe5 {[%clk
01:30:54]} {[%emt 00:00:41]} Be6 {[%clk 01:31:28]} {[%emt 00:00:14]} 9. c3
{[%clk 01:30:42]} {[%emt 00:00:43]} Bc5 {[%emt 00:00:44]} 10. Nbd2 {[%clk
01:28:59]} {[%emt 00:02:10]} O-O {[%clk 01:31:03]} {[%emt 00:00:43]} 11. Bc2
{[%clk 01:28:11]} {[%emt 00:01:18]} Nxf2 {[%clk 01:30:35]} {[%emt 00:00:58]} 12.
Rxf2 {[%clk 01:28:30]} {[%emt 00:00:12]} f6 {[%clk 01:30:09]} {[%emt 00:00:55]}
13. Nf1 {[%clk 01:27:35]} {[%emt 00:01:26]} Bxf2+ {[%clk 01:30:08]} {[%emt
00:00:30]} 14. Kxf2 {[%clk 01:28:01]} {[%emt 00:00:05]} fxe5 {[%clk 01:30:18]}
{[%emt 00:00:19]} 15. Kg1 {[%clk 01:28:13]} {[%emt 00:00:18]} Bg4 {[%clk
01:28:46]} {[%emt 00:02:00]} 16. Ne3 {[%clk 01:27:15]} {[%emt 00:01:30]} Be6
{[%clk 01:28:30]} {[%emt 00:00:45]} 17. b3 {[%clk 01:26:02]} {[%emt 00:01:44]}
e4 {[%clk 01:26:55]} {[%emt 00:02:04]} 18. Nd4 {[%clk 01:20:29]} {[%emt
00:06:03]} Nxd4 {[%clk 01:26:44]} {[%emt 00:00:41]} 19. Qxd4 {[%clk 01:15:13]}
{[%emt 00:05:47]} Qd6 {[%clk 01:26:05]} {[%emt 00:01:08]} 20. b4 {[%clk
01:10:49]} {[%emt 00:04:55]} Qf4 {[%clk 01:18:33]} {[%emt 00:08:01]} 21. Bd2
{[%clk 01:05:27]} {[%emt 00:05:52]} Qf2+ {[%clk 01:15:45]} {[%emt 00:03:18]} 22.
Kh1 {[%clk 01:05:51]} {[%emt 00:00:07]} Rf7 {[%clk 01:07:16]} {[%emt 00:08:59]}
23. Be1 {[%clk 00:59:33]} {[%emt 00:06:48]} Qe2 {[%clk 01:06:22]} {[%emt
00:01:22]} 24. Bg3 {[%clk 00:57:07]} {[%emt 00:02:58]} Raf8 {[%clk 01:04:10]}
{[%emt 00:02:41]} 25. Re1 {[%clk 00:50:09]} {[%emt 00:07:29]} Qh5 {[%clk
00:55:03]} {[%emt 00:09:36]} 26. a4 {[%clk 00:46:24]} {[%emt 00:04:16]} Qg5
{[%clk 00:51:05]} {[%emt 00:04:28]} 27. axb5 {[%clk 00:37:46]} {[%emt
00:09:08]} axb5 {[%clk 00:49:36]} {[%emt 00:01:58]} 28. Qc5 {[%clk 00:37:03]}
{[%emt 00:01:13]} h5 {[%clk 00:45:24]} {[%emt 00:04:42]} 29. Rg1 {[%clk
00:27:09]} {[%emt 00:10:24]} h4 {[%clk 00:21:57]} {[%emt 00:23:57]} 30. Be1
{[%clk 00:27:29]} {[%emt 00:00:10]} h3 {[%clk 00:20:40]} {[%emt 00:01:47]} 31.
gxh3 {[%clk 00:22:12]} {[%emt 00:05:48]} Qe7 {[%clk 00:13:07]} {[%emt
00:08:03]} 32. Qxe7 {[%clk 00:16:57]} {[%emt 00:05:45]} Rxe7 {[%clk 00:13:33]}
{[%emt 00:00:02]} 33. Bd1 {[%clk 00:16:43]} {[%emt 00:00:46]} Bxh3 {[%clk
00:10:18]} {[%emt 00:03:45]} 34. Bg3 {[%clk 00:11:30]} {[%emt 00:05:43]} Rd7
{[%clk 00:07:40]} {[%emt 00:03:07]} 35. Be5 {[%clk 00:11:36]} {[%emt 00:00:24]}
c6 {[%clk 00:05:16]} {[%emt 00:02:54]} 36. Rg3 {[%clk 00:09:13]} {[%emt
00:02:53]} Be6 {[%clk 00:04:41]} {[%emt 00:01:05]} 37. Rg6 {[%clk 00:08:44]}
{[%emt 00:01:00]} Re8 {[%clk 00:05:00]} {[%emt 00:00:10]} 38. Bh5 {[%clk
00:06:45]} {[%emt 00:02:29]} Ree7 {[%clk 00:02:58]} {[%emt 00:02:32]} 39. Bd4
{[%clk 00:04:32]} {[%emt 00:02:44]} Kh7 {[%clk 00:02:10]} {[%emt 00:01:18]} 40.
Kg2 {[%clk 00:02:36]} {[%emt 00:02:26]} Rc7 {[%clk 00:01:29]} {[%emt 00:01:09]}
41. Rg5 {[%clk 00:26:11]} {[%emt 00:06:56]} Rc8 {[%clk 00:23:46]} {[%emt
00:08:12]} 42. Kg3 {[%clk 00:22:57]} {[%emt 00:03:45]} Rec7 {[%clk 00:19:34]}
{[%emt 00:04:41]} 43. Kf4 {[%clk 00:20:04]} {[%emt 00:03:24]} Rf8+ {[%clk
00:14:46]} {[%emt 00:05:18]} 44. Ke5 {[%clk 00:18:25]} {[%emt 00:02:10]} Bh3
{[%clk 00:14:47]} {[%emt 00:00:28]} 45. Kd6 {[%clk 00:15:31]} {[%emt 00:03:25]}
Rfc8 {[%clk 00:14:48]} {[%emt 00:00:28]} 46. Bg6+ {[%clk 00:13:14]} {[%emt
00:02:47]} Kg8 {[%clk 00:09:14]} {[%emt 00:06:03]} 47. Nf5 {[%clk 00:11:16]}
{[%emt 00:02:28]} c5 {[%clk 00:05:43]} {[%emt 00:04:01]} 48. Ne7+ {[%clk
00:05:13]} {[%emt 00:06:33]} Rxe7 {[%clk 00:05:25]} {[%emt 00:00:48]} 49. Kxe7
{[%clk 00:05:40]} {[%emt 00:00:03]} Rc7+ {[%clk 00:04:44]} {[%emt 00:01:11]} 50.
Kd6 {[%clk 00:05:50]} {[%emt 00:00:21]} 1-0

[Event "Elitserien 2022/2023"]
[Site "Elite Hotel Marina Plaza, Kungstorget 6, Helsingborg, Sweden"]
[Date "2022.10.14"]
[Round "1.18"]
[White "Lindgren, Philip"]
[Black "Blomqvist, Erik"]
[Result "1/2-1/2"]
[TimeControl "90 minutes for 40 moves + 30 minutes for the rest of the game + 30 seconds per move from move one."]
[WhiteTitle "IM"]
[BlackTitle "GM"]
[WhiteFideId "1713230"]
[BlackFideId "1709437"]
[WhiteElo "2382"]
[BlackElo "2523"]

1. Nf3 {[%clk 01:30:47]} {[%emt 00:00:12]} d5 {[%clk 01:30:32]} {[%emt
00:00:28]} 2. e3 {[%clk 01:30:01]} {[%emt 00:01:17]} Nf6 {[%clk 01:27:28]}
{[%emt 00:03:33]} 3. b3 {[%clk 01:28:31]} {[%emt 00:02:00]} Bf5 {[%clk
01:26:33]} {[%emt 00:01:25]} 4. Bb2 {[%clk 01:23:18]} {[%emt 00:05:44]} e6
{[%clk 01:26:55]} {[%emt 00:00:07]} 5. Be2 {[%clk 01:22:09]} {[%emt 00:01:40]}
h6 {[%clk 01:26:57]} {[%emt 00:00:27]} 6. c4 {[%clk 01:19:10]} {[%emt
00:03:29]} c6 {[%clk 01:20:41]} {[%emt 00:06:47]} 7. Nc3 {[%clk 01:17:28]}
{[%emt 00:02:12]} Nbd7 {[%clk 01:19:16]} {[%emt 00:01:55]} 8. d4 {[%clk
01:15:18]} {[%emt 00:02:40]} Bd6 {[%clk 01:14:35]} {[%emt 00:05:11]} 9. O-O
{[%clk 01:13:35]} {[%emt 00:02:13]} O-O {[%clk 01:12:01]} {[%emt 00:03:04]} 10.
Nd2 {[%clk 01:06:27]} {[%emt 00:07:37]} Qe7 {[%clk 00:59:05]} {[%emt 00:13:27]}
11. Re1 {[%clk 01:03:19]} {[%emt 00:03:37]} Rfd8 {[%clk 00:49:32]} {[%emt
00:10:04]} 12. a3 {[%clk 00:54:21]} {[%emt 00:09:28]} a5 {[%clk 00:40:54]}
{[%emt 00:09:07]} 13. Bf3 {[%clk 00:51:16]} {[%emt 00:03:35]} Ne4 {[%clk
00:30:18]} {[%emt 00:11:07]} 14. Ndxe4 {[%clk 00:35:00]} {[%emt 00:16:46]} dxe4
{[%clk 00:30:42]} {[%emt 00:00:05]} 15. Nxe4 {[%clk 00:29:07]} {[%emt
00:06:24]} Bxh2+ {[%clk 00:30:04]} {[%emt 00:01:08]} 16. Kxh2 {[%clk 00:26:11]}
{[%emt 00:03:26]} Bxe4 {[%clk 00:30:27]} {[%emt 00:00:07]} 17. Kg1 {[%clk
00:21:50]} {[%emt 00:04:50]} Nc5 {[%clk 00:28:26]} {[%emt 00:02:31]} 18. Bxe4
{[%clk 00:20:33]} {[%emt 00:01:47]} Nxe4 {[%clk 00:28:50]} {[%emt 00:00:06]} 19.
Qc2 {[%clk 00:19:59]} {[%emt 00:01:04]} f5 {[%clk 00:26:54]} {[%emt 00:02:26]}
20. Rad1 {[%clk 00:14:06]} {[%emt 00:06:23]} Rd7 {[%clk 00:25:37]} {[%emt
00:01:47]} 21. Rd3 {[%clk 00:13:31]} {[%emt 00:01:05]} h5 {[%clk 00:23:20]}
{[%emt 00:02:47]} 22. Red1 {[%clk 00:12:08]} {[%emt 00:01:53]} h4 {[%clk
00:15:01]} {[%emt 00:08:49]} 23. f3 {[%clk 00:10:58]} {[%emt 00:01:40]} Ng3
{[%clk 00:15:24]} {[%emt 00:00:08]} 24. Qf2 {[%clk 00:10:18]} {[%emt 00:01:10]}
Rf8 {[%clk 00:13:34]} {[%emt 00:02:20]} 25. d5 {[%clk 00:07:21]} {[%emt
00:03:26]} exd5 {[%clk 00:09:11]} {[%emt 00:04:54]} 26. cxd5 {[%clk 00:07:45]}
{[%emt 00:00:06]} Rfd8 {[%clk 00:09:33]} {[%emt 00:00:08]} 27. Qe1 {[%clk
00:03:58]} {[%emt 00:04:16]} Rxd5 {[%clk 00:09:16]} {[%emt 00:00:47]} 28. Rxd5
{[%clk 00:03:50]} {[%emt 00:00:38]} cxd5 {[%clk 00:07:56]} {[%emt 00:01:51]} 29.
Kf2 {[%clk 00:01:38]} {[%emt 00:02:42]} b6 {[%clk 00:07:10]} {[%emt 00:01:16]}
30. Qd2 {[%clk 00:01:33]} {[%emt 00:00:35]} Rd6 {[%clk 00:04:52]} {[%emt
00:02:47]} 31. Qd4 {[%clk 00:01:38]} {[%emt 00:00:24]} Kh7 {[%clk 00:04:43]}
{[%emt 00:00:40]} 32. Rc1 {[%clk 00:00:37]} {[%emt 00:01:32]} Rg6 {[%clk
00:04:45]} {[%emt 00:00:28]} 33. Qf4 {[%clk 00:00:34]} {[%emt 00:00:33]} h3
{[%clk 00:02:49]} {[%emt 00:02:26]} 34. gxh3 {[%clk 00:00:41]} {[%emt
00:00:22]} Nh5 {[%clk 00:03:15]} {[%emt 00:00:04]} 35. Qd4 {[%clk 00:00:32]}
{[%emt 00:00:40]} Qg5 {[%clk 00:01:05]} {[%emt 00:02:39]} 36. Ke2 {[%clk
00:00:32]} {[%emt 00:00:31]} Qg2+ {[%clk 00:01:23]} {[%emt 00:00:12]} 37. Kd3
{[%clk 00:00:41]} {[%emt 00:00:21]} Qxf3 {[%clk 00:01:44]} {[%emt 00:00:08]} 38.
Kc2 {[%clk 00:00:31]} {[%emt 00:00:40]} Ng3 {[%clk 00:01:33]} {[%emt 00:00:41]}
39. Kb1 {[%clk 00:00:31]} {[%emt 00:00:31]} Ne4 {[%clk 00:01:04]} {[%emt
00:00:58]} 40. Rc7 {[%clk 00:00:33]} {[%emt 00:00:28]} Qg3 {[%clk 00:00:56]}
{[%emt 00:00:37]} 41. Rf7 {[%clk 00:21:02]} {[%emt 00:10:02]} a4 {[%clk
00:15:03]} {[%emt 00:16:24]} 42. Rxf5 {[%clk 00:07:20]} {[%emt 00:14:11]} Qe1+
{[%clk 00:09:45]} {[%emt 00:05:47]} 43. Ka2 {[%clk 00:07:33]} {[%emt 00:00:19]}
Rg1 {[%clk 00:09:04]} {[%emt 00:01:10]} 44. Rh5+ {[%clk 00:01:28]} {[%emt
00:06:35]} Kg6 {[%clk 00:09:30]} {[%emt 00:00:05]} 45. Qxg7+ {[%clk 00:01:52]}
{[%emt 00:00:05]} Kxh5 {[%clk 00:09:56]} {[%emt 00:00:05]} 46. Qh8+ {[%clk
00:00:58]} {[%emt 00:01:24]} Kg5 {[%clk 00:09:49]} {[%emt 00:00:37]} 47. Qd8+
{[%clk 00:01:23]} {[%emt 00:00:04]} Kg6 {[%clk 00:10:03]} {[%emt 00:00:16]} 48.
Qg8+ {[%clk 00:01:42]} {[%emt 00:00:11]} Kh6 {[%clk 00:10:04]} {[%emt
00:00:29]} 49. Qh8+ {[%clk 00:02:06]} {[%emt 00:00:06]} Kg5 {[%clk 00:10:17]}
{[%emt 00:00:17]} 50. Qd8+ {[%clk 00:02:31]} {[%emt 00:00:05]} Kh5 {[%clk
00:10:31]} {[%emt 00:00:14]} 51. Qh8+ {[%clk 00:02:57]} {[%emt 00:00:07]} Kg5
{[%clk 00:10:11]} {[%emt 00:00:50]} 52. Qd8+ {[%clk 00:03:19]} {[%emt
00:00:07]} 1/2-1/2